Cogmind - Beta 14 @@@ ROGUE MODE // 2024.08.23 @ 12:02:26 Player: H3-RMN Result: Destroyed by AQ-58D(R) with Subdweller Laser Performance ------------- Evolutions (0) 0 Regions Visited (3) 600 Robots Destroyed (15) 75 Value Destroyed (450) 450 Prototype IDs (12) 240 Alien Tech Used (0) 0 Bonus (0) 0 TOTAL SCORE: 1365 Bonus ------- None Cogmind --------- Core Integrity 0/250 Matter 288/300 Energy 187/200 System Corruption 0% Temperature Cool (21) Movement Rolling (95) Location -10/Subcaves Parts ------- > --- POWER (1) -------- Subdweller Power Source > --- PROPULSION (2) --- Wheel Subdweller Monowheel > --- UTILITY (2) ------ Scrap Shield > --- WEAPON (2) ------- Advanced Beam Cannon Battle Rifle > --- INVENTORY (5) ---- Subdweller Power Source Power Bank Heavy Riot Gun Subdweller Machine Gun Grenade Launcher Peak State ------------ > --- POWER ------------ Subdweller Power Source > --- PROPULSION ------- Light Treads Subdweller Monowheel > --- UTILITY ---------- Disposable Heat Sink Medium Storage Unit > --- WEAPON ----------- Advanced Beam Cannon Advanced Beam Cannon > --- INVENTORY -------- Wheel Hover Unit Hover Unit Hover Unit Hover Unit Compact Matter Pod Advanced Beam Cannon Subdweller Beam Cannon Grenade Launcher Mining Laser [Rating: 15] Favorites ----------- Power Light Ion Engine Engine Light Ion Engine Propulsion Hover Unit Treads Light Treads Wheel Subdweller Monowheel Hover Unit Hover Unit Utility Medium Storage Unit Device Heat Sink Storage Medium Storage Unit Protection Scrap Shield Weapon Advanced Beam Cannon Energy Gun Small Laser Energy Cannon Advanced Beam Cannon Ballistic Gun Battle Rifle Build | -11 -10 -10 -10 ------- Run | Yrd Mat Min Sub Slots Evolved . | . . . . Power . | . . . . Propulsion . | . . . . Utility . | . . . . Weapon . | . . . . Parts Attached 28 | 7 7 2 12 Power 3 | 1 1 . 1 Engine 3 | 1 1 . 1 Core . | . . . . Reactor . | . . . . Propulsion 12 | 2 3 1 6 Treads 4 | . 1 . 3 Leg . | . . . . Wheel 5 | 2 . . 3 Hover 3 | . 2 1 . Flight . | . . . . Utility 6 | 2 1 1 2 Device 3 | 1 . 1 1 Storage 2 | 1 1 . . Processor . | . . . . Hackware . | . . . . Protection 1 | . . . 1 Artifact . | . . . . Weapon 7 | 2 2 . 3 Energy Gun 2 | 2 . . . Energy Cannon 4 | . 2 . 2 Ballistic Gun 1 | . . . 1 Ballistic Cannon . | . . . . Launcher . | . . . . Special Weapon . | . . . . Impact Weapon . | . . . . Slashing Weapon . | . . . . Piercing Weapon . | . . . . Special Melee Weapon . | . . . . Unidentified Prototypes 1 | . 1 . . Parts Lost 8 | . . . 8 Power 1 | . . . 1 Propulsion 4 | . . . 4 Utility . | . . . . Weapon 3 | . . . 3 Highest Loss Streak 3 | . . . 3 To Critical Strikes 1 | . . . 1 Average Slot Usage (%) 98 | . 99 100 97 Engine 13 | . 13 14 13 Treads 2 | . 2 . 3 Wheel 10 | . 2 . 15 Hover 13 | . 23 28 8 Device 13 | . 14 14 13 Storage 13 | . 14 14 13 Energy Gun 2 | . 16 . . Energy Cannon 20 | . 11 28 21 Ballistic Gun 4 | . . . 6 Peak Build Rating 15 | 9 14 14 15 Average Rating 12 | 5 10 12 13 On Entrance 8 | . 9 14 12 Naked Turns . | . . . . Heaviest Build 29 | 13 22 22 29 Greatest Support 30 | 26 26 12 30 Greatest Overweight (x) 6 | . 1 1 6 Average Overweight (x) . | . . 1 . Largest Inventory Capacity 10 | 8 10 10 10 Average Capacity 9 | 7 9 10 9 Most Carried 10 | 5 10 10 10 Average Carried 9 | 2 8 9 9 Final Capacity 10 | 8 10 10 5 Final Carried 10 | 5 10 10 5 Class Distribution -------------------- 59% | Mutant 36% | Scavenger-Mutant 4% | Subdweller-Mutant Dominant Class ---------------- Mutant | -10/Materials Mutant | -10/Mines Scavenger-Mutant | -10/Subcaves Resources | -11 -10 -10 -10 ----------- Run | Yrd Mat Min Sub Matter Collected 474 | 270 70 20 114 Remotely . | . . . . Salvage Created 685 | 104 127 . 454 Parts 30 | 4 8 . 18 Haulers Intercepted 1 | . 1 . . Recyclers Shooed . | . . . . Parts Field Recycled . | . . . . Retrieved Matter . | . . . . Parts Self-Destructed 2 | . . . 2 Prevented . | . . . . Kills | -11 -10 -10 -10 ------- Run | Yrd Mat Min Sub Combat Hostiles Destroyed 11 | . 2 . 9 Guns 1 | . . . 1 Cannons 10 | . 2 . 8 Classes Destroyed 6 | 2 2 . 2 Tunneler 2 | 2 . . . Hauler 1 | . 1 . . Recycler 1 | 1 . . . Grunt 2 | . 2 . . Artisan 1 | . . . 1 Subdweller 9 | . . . 9 Best Kill Streak 2 | 2 1 . 2 Combat Bots Only 2 | . 1 . 2 Max Kills in Single Turn 1 | 1 1 . 1 Gunslinging . | . . . . Exploded . | . . . . Melee . | . . . . Uniques/NPCs Destroyed . | . . . . Combat | -11 -10 -10 -10 -------- Run | Yrd Mat Min Sub Hostile Shots Fired 101 | . 18 . 83 Missed 25 | . 4 . 21 Damage Taken 1577 | . 153 . 1424 Core 268 | . 20 . 248 Absorbed by Shields . | . . . . Core Remaining (%) 100 | 100 . . . Volleys Fired 102 | 7 9 . 86 Largest 2 | 2 2 . 2 Hottest 148 | 80 136 . 148 Shots Fired 167 | 14 18 . 135 Gun 32 | 14 6 . 12 Cannon 135 | . 12 . 123 Launcher . | . . . . Special . | . . . . Kinetic 12 | . . . 12 Thermal 155 | 14 18 . 123 Explosive . | . . . . Electromagnetic . | . . . . Robot Hit Streak 20 | 7 8 . 20 Robot Miss Streak 2 | 1 2 . 2 Penetration Max . | . . . . Secondary Targets . | . . . . Shots Hit Robots 97 | 10 12 . 75 Core Hits 25 | 4 4 . 17 Critical Kills . | . . . . Critical Parts Destroyed . | . . . . Critical Strikes . | . . . . Melee Attacks . | . . . . Impact . | . . . . Slashing . | . . . . Piercing . | . . . . Sneak Attacks . | . . . . Combat Hostiles . | . . . . Follow-up Attacks . | . . . . Damage Inflicted 1891 | 111 216 . 1564 Guns 258 | 111 53 . 94 Cannons 1633 | . 163 . 1470 Explosions . | . . . . Melee . | . . . . Ramming . | . . . . Kinetic 94 | . . . 94 Thermal 1797 | 111 216 . 1470 Explosive . | . . . . Electromagnetic . | . . . . Impact . | . . . . Slashing . | . . . . Piercing . | . . . . Highest Corruption . | . . . . Average Corruption . | . . . . Corruption Purged . | . . . . Corruption Blocked . | . . . . Overload Shots . | . . . . Overflow Damage 8 | . . . 8 Projectiles 8 | . . . 8 Explosions . | . . . . Melee . | . . . . Knockbacks . | . . . . Impact . | . . . . Kinetic . | . . . . Secondary . | . . . . Self-Inflicted Damage . | . . . . Shots . | . . . . Rammed . | . . . . Targets Rammed . | . . . . Kicked . | . . . . Crushed . | . . . . Highest Temperature 274 | 72 256 . 274 Average Temperature 82 | 29 110 . 79 Received Heat Transfer 591 | . 84 . 507 Effects 1 | . 1 . . Energy Bleed 1 | . 1 . . Siege Activations . | . . . . Robots Corrupted . | . . . . Combat Hostiles . | . . . . Parts Fried . | . . . . Impact Corruptions . | . . . . Robots Melted . | . . . . Combat Hostiles . | . . . . Parts Melted 2 | . . . 2 Heat Transferred 3150 | 250 421 . 2479 Parts Sabotaged . | . . . . Parts Stolen . | . . . . Parts Stripped . | . . . . Power Chain Reactions . | . . . . Alert | -11 -10 -10 -10 ------- Run | Yrd Mat Min Sub Peak Influence 117 | 15 117 45 . Initial 45 | . 9 45 . Average 47 | 5 60 45 . Maximum Alert Level . | . . . . Low Security (%) 100 | 100 100 100 . Level 1 . | . . . . Level 2 . | . . . . Level 3 . | . . . . Level 4 . | . . . . Level 5 . | . . . . High Security . | . . . . Max Security . | . . . . Squads Dispatched . | . . . . Investigation . | . . . . Extermination . | . . . . Reinforcement . | . . . . Assault . | . . . . Garrison . | . . . . Intercept . | . . . . Searches Triggered . | . . . . Construction Impeded . | . . . . Haulers Reinforced . | . . . . Active Scanning Responses . | . . . . Cargo Convoy Interrupts . | . . . . Stealth | -11 -10 -10 -10 --------- Run | Yrd Mat Min Sub Distress Signals 1 | . 1 . . Communications Jammed . | . . . . Distress Signals . | . . . . Times Spotted 18 | . 8 . 10 Peak Tracking Total 5 | . 5 . 2 Tactical Retreats 1 | . 1 . . Traps | -11 -10 -10 -10 ------- Run | Yrd Mat Min Sub Traps Triggered 1 | . . . 1 Indirectly . | . . . . Trap Hack Attempts . | . . . . Triggered . | . . . . Disarmed . | . . . . Reprogrammed . | . . . . Reused . | . . . . Traps Extracted . | . . . . Installed . | . . . . Triggered . | . . . . Machines | -11 -10 -10 -10 ---------- Run | Yrd Mat Min Sub Machines Disabled 1 | . . . 1 Max in Single Turn 1 | . . . 1 Machines Repaired . | . . . . Machines Dismantled . | . . . . Machines Sabotaged . | . . . . Overloaded Fab Kills . | . . . . Hacking | -11 -10 -10 -10 --------- Run | Yrd Mat Min Sub Machines Accessed 2 | . 1 . 1 Terminals 1 | . 1 . . Fabricators . | . . . . Repair Stations . | . . . . Recycling Units . | . . . . Scanalyzers . | . . . . Garrison Access . | . . . . Total Hacks 3 | . 2 . 1 Successful 1 | . . . 1 Failed 2 | . 2 . . Catastrophic . | . . . . Database Lockouts . | . . . . Manual 2 | . 2 . . Terminals 2 | . 2 . . Fabricators . | . . . . Repair Stations . | . . . . Recycling Units . | . . . . Scanalyzers . | . . . . Garrison Access . | . . . . Terminal Hacks 1 | . . . 1 Derelict Proto ID Bank 1 | . . . 1 Fabricator Hacks . | . . . . Repair Station Hacks . | . . . . Recycling Unit Hacks . | . . . . Scanalyzer . | . . . . Garrison Access Hacks . | . . . . Unauthorized Hacks . | . . . . Terminals . | . . . . Fabricators . | . . . . Repair Stations . | . . . . Recycling Units . | . . . . Scanalyzers . | . . . . Garrison Access . | . . . . Data Cores Recovered . | . . . . Used . | . . . . Hacking Detections 1 | . 1 . . Full Trace Events . | . . . . Feedback Events . | . . . . Feedback Blocked . | . . . . Robot Schematics Acquired . | . . . . Robots Built . | . . . . Authchips . | . . . . Time . | . . . . Total Robot Build Rating . | . . . . Part Schematics Acquired . | . . . . Parts Built . | . . . . Authchips . | . . . . Time . | . . . . Total Part Build Rating . | . . . . Parts Repaired . | . . . . Time . | . . . . Parts Recycled . | . . . . Recycled Matter . | . . . . Retrieved Matter . | . . . . Retrieved Components . | . . . . Parts Scanalyzed . | . . . . Part Schematics Acquired . | . . . . Parts Damaged . | . . . . Bothacking | -11 -10 -10 -10 ------------ Run | Yrd Mat Min Sub Used RIF Installer . | . . . . Robots Hacked . | . . . . Non-combat . | . . . . Combat . | . . . . Robot Hacks Applied . | . . . . Relay Couplers Released . | . . . . Fabnet Peak Effective % . | . . . . Robots Rewired . | . . . . Allies Hacked . | . . . . Hacks Repelled . | . . . . Allies | -11 -10 -10 -10 -------- Run | Yrd Mat Min Sub Total Allies . | . . . . Largest Group . | . . . . Highest-Rated Group . | . . . . Highest-Rated Ally . | . . . . Total Orders . | . . . . Ally Attacks . | . . . . Total Damage . | . . . . Kills . | . . . . Allies Corrupted . | . . . . Allies Melted . | . . . . Intel | -11 -10 -10 -10 ------- Run | Yrd Mat Min Sub Robot Analysis Total . | . . . . Derelict Logs Recovered 2 | . . 1 1 Drone Launches . | . . . . Drone Recoveries . | . . . . Exploration | -11 -10 -10 -10 ------------- Run | Yrd Mat Min Sub Turns Passed 2045 | 95 336 276 1338 Spaces Moved 1157 | 65 220 169 703 Core 5 | 2 . . 3 Treads 6 | . . . 6 Legs . | . . . . Wheels 751 | 63 53 . 635 Hover 395 | . 167 169 59 Flight . | . . . . Fastest Speed 50 | 50 56 116 95 Average Speed 104 | 89 103 116 103 Slowest Speed 350 | 100 120 116 350 Overloaded Moves . | . . . . Propulsion Burnouts . | . . . . Robots Hopped . | . . . . Cave-ins Triggered . | . . . . Exploration Rate (%) 27 | 3 39 31 37 Regions Visited 3 Branch Regions 2 Pre-discovered Areas . | . . . . Known Exits Taken . | . . . . Unknown Exits Taken 3 | 1 1 1 . Scrap Searched 3 | . . 1 2 Spaces Dug 21 | . . . 21 Terrain Destroyed 24 | . . . 24 Melee . | . . . . Projectile 24 | . . . 24 AOE . | . . . . Terrain Rammed . | . . . . Walls Destroyed . | . . . . Machines Disabled . | . . . . Actions | -11 -10 -10 -10 --------- Run | Yrd Mat Min Sub Total 1828 | 84 313 249 1182 Wait 496 | 1 61 76 358 Move 1154 | 64 219 168 703 Hop . | . . . . Pick Up 25 | 5 8 1 11 Fast Attach 18 | 7 4 1 6 Attach 5 | . 1 . 4 Detach 1 | . 1 . . Swap 5 | . 2 1 2 Drop 20 | . 8 2 10 Fire 102 | 7 9 . 86 Melee . | . . . . Ram . | . . . . Kick . | . . . . Crush . | . . . . Escape Stasis . | . . . . Rewire . | . . . . Trap . | . . . . Miscellaneous 2 | . . . 2 Route ------- -11/Scrapyard -10/Materials (discovered 2 exits: [*Mat] / [*Min]) -10/Mines (discovered 2 exits: [*Mat] / *Sub) -10/Subcaves (discovered 1 exit: [*Mat]) History --------- Turn | Location | Event 14 | -11/Scrapyard | Discovered new exit (range 16) 96 | -11/Scrapyard | Entered Materials 174 | -10/Materials | Discovered new exit (range 8) 217 | -10/Materials | Discovered new exit (range 3) 317 | -10/Materials | Build established: Mutant 432 | -10/Materials | Entered Mines 467 | -10/Mines | Met a Derelict bent on vengeance 490 | -10/Mines | Discovered new exit (range 10) 544 | -10/Mines | Learned location of 1 exit from Materials 685 | -10/Mines | Discovered new exit (range 6) 708 | -10/Mines | Entered Subcaves 726 | -10/Subcaves | Discovered new exit (range 15) 1165 | -10/Subcaves | Lost 3 parts (1p2n) 1184 | -10/Subcaves | Ambushed by angry Subdweller bent on revenge 1291 | -10/Subcaves | Core integrity fell below 50% 1438 | -10/Subcaves | Core integrity fell below 20% 1470 | -10/Subcaves | Lost 3 parts (1n2w) 1507 | -10/Subcaves | Build established: Scavenger-Mutant 1585 | -10/Subcaves | Learned Materials garrison access intel 1813 | -10/Subcaves | Visited 4L-MR0's lab 1825 | -10/Subcaves | Found Power Bank 1861 | -10/Subcaves | Shifting Twisted Machinery released Sub. Machine Gun 1866 | -10/Subcaves | Shifting Twisted Machinery released Sub. Power Source 1931 | -10/Subcaves | Disturbed a concealed Subdweller 2046 | -10/Subcaves | Destroyed by AQ-58D(R) with Subdweller Laser Last Messages --------------- 01931_ ET-QSD(R) angrily emerges from the Twisted Machinery. 01938_ Subatomizers dissect the Hvy. Riot Gun. 01943_ ET-QSD(R) destroyed. 01946_ Acquired 15 matter. 01950_ Dropped Med. Storage Unit. 01950_ Dropped Disposable Heat Sink. 01955_ Acquired Scrap Shield. 01958_ Dropped Assault Rifle. 01958_ Acquired Hvy. Riot Gun. 01959_ Dropped Hover Unit. 01960_ Acquired 10 matter. 01964_ Scrap Shield Fragment affixed to Scrap Shield (+26). 01966_ Scrap Shield Fragment affixed to Scrap Shield (+46). 01968_ Acquired Grenade Launcher. 01971_ Dropped Com. Matter Pod. 01972_ Acquired Power Bank. 02045_ F6-O3O(R) destroyed. Map ----- +----------------------------------------------------+ | ?# ##???# ##????# ### #?????????????? | | ?# ##??# ##???# #?#### ## ##????????????? | | ?## ### #???## ##???#### ####?????????? | | ??## #????# #??????## #?????????? | | #### ##???????## #???????## #?????????? | | # ##????##### ##????????######?????????? | | ##?????# ##???????????????????????? | | ##??????# ###?????????????????????? | | #???????# ##????????????????????? | | #????#### #????????????????????? | | #????# #????????????????????? | | ##????# ### #????????????????????? | | ## #?????## #??### ##???????????????????? | | ### #?????### ?????# #???????????????????? | | ###?# ##### ##??????# ##???????????????????? | | #???# ##????### #????????????????????? | | #???#### #????# #????????????????????? | | #???????# #????# #????????????????????? | | #????????# #????# ##???????????????????? | | #????????# ##???# #???????????????????? | | #????##### ###?# # #???????????????????? | | #????# ## ## ## ##???????????????????? | | #????# ### #???????????????????? | | ###### ### #???????????????????? | | #?# #???????????????????? | | # ###??#@&=##???????????????????? | | ## ### # ##?????##%R#????????????????????? | | ?####?## # ##??????##!*#????????????????????? | | ???????## #####?## ##???????????????????? | | ????????## # ###" #???????????????????? | | ?????????#### % "" #???????????????????? | | ????????????# # " ##???????????????????? | | ????????????##### " **#????????????????????? | | ??????????????### " "#????????????????????? | | ??????????????# % " ""#????????????????????? | | ??????????????## "" #????????????????????? | | ???????????????# ## ##????????????????????? | | ???????????????# # ###" ###?????????????????????? | | ???????????????## #?#" #???????????????????????? | | ????????????????## #? ##???????????????????????? | | ????????????????? ? #????????????????????????? | | ????????????????## ? ????????????????????????? | | ????????????????? ????????????????????????? | | ?????????????????# ## #????????????????????????? | | ?????????????????####? ?????????????????????????? | | ?????????????????????# ?????????????????????????? | | ?????????????????????? ?????????????????????????? | | ?????????????????????????????????????????????????? | | ?????????????????????????????????????????????????? | | ?????????????????????????????????????????????????? | +----------------------------------------------------+ Best States ------------- Heat Dissipation 35 Coolant Potential 50 Energy Generation 15 Energy Capacity 250 Matter Stores 300 Matter Capacity 300 Sight Range 16 Terrain Scan Range 16 Terrain Scan Density 10 Armor Coverage 800 Evasion (%) 53 Recoil Reduction 2 Item Schematics ----------------- None Robot Schematics ------------------ None Fabricated ------------ Nothing Alien Tech Used ----------------- None Achievements -------------- None Challenges ------------ None Game ------ Seed NetworkDamperRegenerator Manual? 0 Play Time 00:15:57 Cumulative 485.8 hours Start 2024.08.23 @ 11:45:39 End 2024.08.23 @ 12:02:26 Sessions 1 Manual Loads 0 Difficulty Rogue Special Mode None Game No. 186 Rogue 183 Adventurer 3 Explorer 0 Win Type - Total 7 Types 4/1/0/1/0/1/0/0/0 Lore% 74 Gallery% 87 Achievement% 87 Wizard Run 0 Options --------- Layout 1 ASCII 0 Keyboard 0 Movement Numpad Keybinds 0 Fullscreen 2 Font 24/Smallcaps Map View 50x35 Zoom Use 0% Tactical HUD 1 Map Filters NONE Filters NONE Steam 1 RUN: 560b0d96-0ff2-416d-8ef1-fefd786c3cac